[Event "AI Cup Div-1 2023"]
[Site "Online"]
[Date "2023.09.28"]
[Round "53.2"]
[White "Nepomniachtchi, Ian"]
[Black "Giri, Anish"]
[Result "1-0"]
[Annotator "TA"]
[ECO "C65"]
[WhiteElo "2771"]
[BlackElo "2760"]
[PlyCount "109"]
[EventDate "2023.09.18"]
[EventType "k.o."]
[EventCountry "NET"]
[SourceTitle "playchess.com"]
[Source "ChessBase"]
[SourceQuality "1"]
[TimeControl "900+3"]

{[%evp 9,109,23,21,16,24,14,13,0,1,-20,-13,-16,2,-18,0,0,0,0,0,0,0,0,0,0,0,0,0,0,0,-7,0,11,0,0,87,91,79,31,39,44,45,39,37,36,31,0,0,0,59,77,56,26,76,-8,58,14,12,15,15,0,0,0,2,0,8,8,31,21,41,56,53,48,53,0,26,27,47,47,121,123,90,83,137,63,494,463,550,550,539,530,29972,29964,29981,29982,29982,29983,29983,29984,29984,29985,29985,29986]} 1. e4 {[%emt 0:00:03]} e5 {[%emt 0:00:04]} 2. Nf3 {[%emt 0:00:04]} Nc6 {[%emt 0:00:01]} 3. Bb5 {[%emt 0:00:03]} Nf6 {[%emt 0:00:01]} 4. d3 {[%emt 0:00:08]} Bc5 {[%emt 0:00:01]} 5. Bxc6 {[%emt 0:00:01]} dxc6 {[%emt 0:00:02]} 6. c3 {[%emt 0:00:01] C65: Ruy Lopez: Berlin Defence (3...Nf6), unusual lines and 4 0-0 Bc5.} Bd6 {[%emt 0:00:10] [#]} 7. Nbd2 $146 {[%emt 0:01:44]} ({Predecessor:} 7. O-O Bg4 8. h3 Bh5 9. Nbd2 Nd7 10. d4 exd4 11. cxd4 O-O 12. Re1 Re8 13. Nc4 Nb6 14. Nxd6 Qxd6 {0-1 Paravyan,D (2589)-Jakovenko,D (2730) RUS Cup final 2017 (2.2)}) 7... Be6 {[%emt 0:00:48]} 8. Ng5 {[%emt 0:00:17] The position is equal.} Bg4 {[%emt 0:00:55]} 9. Qb3 {[%emt 0:00:03][%csl Gg5][%cal Rb3f7]} O-O {[%emt 0:00:01]} 10. h3 {[%emt 0:00:43]} Bc8 {[%emt 0:02:48]} 11. Nc4 {[%emt 0:00:10]} Nd7 {[%emt 0:00:06]} 12. Qc2 {[%emt 0:00:41]} Nb6 {[%emt 0:00:40]} 13. Nxd6 {[%emt 0:00:38]} cxd6 {[%emt 0:00:03]} 14. f4 {[%emt 0:00:06]} exf4 {[%emt 0:00:37]} 15. Bxf4 {[%emt 0:00:03]} h6 {[%emt 0:00:05]} 16. Nf3 {[%emt 0:00:03]} f5 {[%emt 0:00:10]} 17. Bh2 {[%emt 0:00:24]} fxe4 {[%emt 0:01:01]} 18. dxe4 {[%emt 0:00:03]} Bxh3 {[%emt 0:00:18][%mdl 64] Deflection} 19. O-O-O {[%emt 0:00:17][%cal Oh2d6]} d5 {[%emt 0:00:09]} 20. Be5 $1 {[%emt 0:00:34]} Bg4 {[%emt 0:01:43]} 21. exd5 {[%emt 0:00:03]} Bf5 {[%emt 0:00:00] Dodges Qg6. Black is weak on the dark squares} (21... Qe7 $11 22. Rde1 (22. d6 Qe6 $15) 22... Bf5) 22. Qf2 $1 $16 {[%emt 0:00:15]} Qe8 {[%emt 0:02:41]} 23. Qg3 {[%emt 0:03:46] White is much more active.} (23. dxc6 $16 Qxc6 24. Rh4) 23... Qg6 $1 $14 {[%emt 0:00:02]} 24. Qxg6 {[%emt 0:00:01]} Bxg6 {[%emt 0:00:00]} 25. dxc6 {[%emt 0:00:00]} bxc6 {[%emt 0:00:01]} 26. Rd6 {[%emt 0:00:01][%csl LRc6,LRg6]} Be4 {[%emt 0:00:15]} 27. Rh4 {[%emt 0:00:09]} Bxf3 {[%emt 0:00:54]} 28. gxf3 {[%emt 0:00:10]} Rae8 {[%emt 0:00:11]} ({Black should play} 28... Rf5 $1 $11 29. f4 Nc4 30. Rxc6 Nxe5 31. fxe5 Rxe5) 29. Bd4 $1 {[%emt 0:00:06]} Rxf3 {[%emt 0:00:15]} 30. Rg6 {[%emt 0:00:39]} (30. Rg4 $5 {[%cal Rg4g7]} c5 31. Bxc5 $14 (31. Rxg7+ Kf8 $14)) 30... Rf7 {[%emt 0:00:46]} (30... c5 $11 {remains equal.} 31. Rxg7+ (31. Bxg7 Kf7 $11) 31... Kf8 32. Rxh6 (32. Rh7 cxd4 33. Rxd4 Rf2 $17) 32... cxd4 33. Rxa7 Rf1+ 34. Kc2 d3+ 35. Kxd3 (35. Kb3 Re7 $11) 35... Nd7) 31. Rhxh6 {[%emt 0:01:06]} (31. Rhg4 $1 $16) 31... Nd7 {[%emt 0:00:59]} (31... c5 $11 32. Bxc5 Rf1+ 33. Kc2 Kf7 34. Rxb6 axb6 35. Rxb6 g5) 32. Rg2 {[%emt 0:00:44][%cal Oh6g6] Rhg6! would be deadly.} (32. Bxa7 $2 {is the wrong capture.} Rf1+ 33. Kc2 Kf7 $19) 32... c5 {[%emt 0:00:05]} 33. Bg1 {[%emt 0:00:03]} Ne5 {[%emt 0:00:08] Hoping for ...Rf1+.} 34. Kc2 {[%emt 0:00:41]} Nf3 {[%emt 0:00:02] Threatens to win with ...Ne1+.} 35. Kb3 {[%emt 0:00:06]} Rb7+ {[%emt 0:00:22]} 36. Ka3 {[%emt 0:00:04]} Nxg1 {[%emt 0:00:17]} 37. Rxg1 $11 {[%emt 0:00:03][%mdl 4096] Endgame KRR-KRR} Re2 {[%emt 0:00:01]} 38. b3 {[%emt 0:00:03]} c4 {[%emt 0:00:00]} 39. Rc6 {[%emt 0:00:22]} cxb3 {[%emt 0:00:02]} 40. axb3 {[%emt 0:00:00]} Re5 {[%emt 0:00:10]} 41. Rg4 {[%emt 0:00:26]} (41. Ka4 $14) 41... g5 {[%emt 0:00:04]} 42. Ka4 {[%emt 0:00:11]} Kg7 {[%emt 0:00:06]} 43. b4 {[%emt 0:00:01]} Rf7 {[%emt 0:00:01]} (43... Reb5 $14) 44. Ra6 $16 {[%emt 0:00:10]} Ref5 {[%emt 0:00:05] [#]} 45. c4 $1 {[%emt 0:00:04]} Kh7 {[%emt 0:00:01] [#]} (45... Rb7 $142) 46. c5 {[%emt 0:00:02]} (46. Rc6 $1 $16) 46... Rg7 $2 {[%emt 0:00:01][%mdl 8192] This move loses the game for Black.} (46... Rf4 $1 $14 47. Rxg5 Rb7) 47. Rd6 $18 {[%emt 0:00:10]} Rf1 {[%emt 0:00:08]} 48. c6 {[%emt 0:00:04][%cal Bc5c6,Bc6c7][%mdl 32]} Rc1 {[%emt 0:00:02]} 49. Kb5 {[%emt 0:00:01] aiming for Rd7.} Rg6 {[%emt 0:00:03]} 50. Rxg6 {[%emt 0:00:07] White mates.} Kxg6 {[%emt 0:00:00]} 51. Rc4 {[%emt 0:00:01]} a6+ {[%emt 0:00:06]} 52. Kc5 $1 {[%emt 0:00:02]} (52. Kxa6 {is a self mate.} Rxc4 53. c7 Rxc7 54. b5 g4 55. b6 Rc6 56. Ka7 g3 57. b7 g2 58. b8=Q g1=Q+ 59. Ka8 Ra6+ 60. Kb7 Rb6+ 61. Kc8 Rxb8+ 62. Kxb8 Qb1+ 63. Kc7 Qb5 64. Kc8 Kf6 65. Kc7 Ke7 66. Kc8 Kd6 67. Kd8 Qd7#) 52... Rf1 {[%emt 0:00:03]} 53. c7 {[%emt 0:00:01]} Rf8 {[%emt 0:00:00]} 54. Kb6 {[%emt 0:00:01]} Rc8 {[%emt 0:00:01]} 55. Kb7 {[%emt 0:00:01] Weighted Error Value: White=0.10 (very precise) /Black=0.33} 1-0

[Event "AI Cup Div-1 2023"]
[Site "Online"]
[Date "2023.09.28"]
[Round "54.1"]
[White "Vachier-Lagrave, Maxime"]
[Black "Nepomniachtchi, Ian"]
[Result "1-0"]
[Annotator "TA"]
[ECO "C42"]
[WhiteElo "2727"]
[BlackElo "2771"]
[PlyCount "103"]
[EventDate "2023.09.18"]
[EventType "k.o."]
[EventCountry "NET"]
[SourceTitle "playchess.com"]
[Source "ChessBase"]
[SourceQuality "1"]
[TimeControl "900+3"]

{[%evp 9,103,8,18,11,18,18,19,11,12,12,25,6,7,16,14,13,9,0,25,3,25,0,14,14,24,16,30,32,19,15,11,18,16,10,45,32,41,35,57,41,66,72,77,58,61,39,50,50,54,22,89,35,38,39,50,53,108,97,109,98,307,224,262,274,263,256,278,254,247,189,182,177,278,276,287,275,348,334,603,588,733,722,687,586,577,563,810,789,749,720,824,822,822,812,809,804]} 1. e4 {[%emt 0:00:03]} e5 {[%emt 0:00:05]} 2. Nf3 {[%emt 0:00:01]} Nf6 {[%emt 0:00:02]} 3. Nxe5 {[%emt 0:00:01]} d6 {[%emt 0:00:01]} 4. Nd3 {[%emt 0:00:00]} Nxe4 {[%emt 0:00:04]} 5. Qe2 {[%emt 0:00:01]} Qe7 {[%emt 0:00:02]} 6. Nf4 {[%emt 0:00:00] Hoping for Nd5. C42: Petroff Defence: 3 Nxe5 and unusual White 3rd moves.} Nf6 {[%emt 0:00:04] Wards off Nd5} 7. d4 {[%emt 0:00:05]} Qxe2+ {[%emt 0:00:02]} 8. Bxe2 {[%emt 0:00:01] The position is equal.} Nc6 {[%emt 0:00:01]} 9. c3 {[%emt 0:00:07]} d5 {[%emt 0:00:13]} 10. f3 {[%emt 0:00:29]} Nd8 {[%emt 0:00:11] [#]} 11. Kf2 $146 {[%emt 0:00:15]} ({Predecessor:} 11. g4 Ne6 12. h4 Bd6 13. Nxe6 Bxe6 14. h5 h6 15. Na3 a6 16. Nc2 O-O-O 17. Bd3 {½-½ Deac,B (2621)-Li,D (2523) Belt and Road Hunan op-A 2019 (8)}) 11... Bd6 {[%emt 0:00:03]} 12. Na3 {[%emt 0:00:14][%cal Bb1a3,Ba3c2,Bc2e3][%mdl 32]} c6 {[%emt 0:00:06] Wards off Nb5} 13. Nc2 {[%emt 0:00:22]} Bf5 {[%emt 0:00:31]} 14. Nd3 {[%emt 0:01:04]} h5 {[%emt 0:00:05]} 15. Bg5 {[%emt 0:00:18]} Nd7 {[%emt 0:00:30]} 16. Ne3 {[%emt 0:00:36]} Bh7 {[%emt 0:00:06]} 17. Bf4 {[%emt 0:00:02]} (17. Bh4 {simplifies} Ne6 18. Bg3 Bxd3 19. Bxd3 Bxg3+ 20. hxg3 Ke7 21. Bf5) 17... Ke7 {[%emt 0:00:08]} 18. Bxd6+ {[%emt 0:01:03]} Kxd6 {[%emt 0:00:00]} 19. Nf4 {[%emt 0:00:31]} (19. h4 {simplifies} Bxd3 20. Bxd3 Ne6 21. a4) 19... h4 {[%emt 0:00:03]} 20. g3 {[%emt 0:00:01]} g5 {[%emt 0:00:23]} 21. Nfg2 {[%emt 0:00:24][%cal Bf4g2,Bg2e1,Be1d3,Bd3c5][%mdl 32]} h3 {[%emt 0:00:50]} 22. Ne1 {[%emt 0:00:03]} Ne6 {[%emt 0:00:01]} 23. Bd3 {[%emt 0:00:15]} Raf8 {[%emt 0:02:39]} 24. Bf5 {[%emt 0:00:30]} (24. Bxh7 {simplifies} Rxh7 25. Nf5+ Kc7 26. Nd3) 24... Bg8 {[%emt 0:00:50]} 25. Nd3 {[%emt 0:00:13]} Ng7 {[%emt 0:00:17]} 26. Bxd7 {[%emt 0:01:53]} (26. Rhe1 {is interesting.} Bh7 27. Bxh7 Rxh7 28. c4) 26... Kxd7 {[%emt 0:00:03] Black is weak on the dark squares} 27. Ng4 {[%emt 0:00:00]} f6 {[%emt 0:00:11]} 28. Nc5+ {[%emt 0:00:20]} Kc8 $1 {[%emt 0:00:03]} 29. Rhe1 {[%emt 0:00:04] Re7 would be deadly.} Rh7 {[%emt 0:01:06]} (29... b6 $1 $11 30. Re7 Rf7 31. Rxf7 Bxf7) 30. Re2 {[%emt 0:01:19] White has more active pieces. The black rooks are badly placed.} (30. a4 $1 $16) 30... b6 $1 $14 {[%emt 0:00:10]} 31. Nd3 $36 {[%emt 0:00:01][%mdl 2048] And now Rae1 would win. White has good play. A dynamic duo of knights.} Kd7 {[%emt 0:01:03]} 32. a4 {[%emt 0:00:09]} a5 {[%emt 0:00:22] [#]} (32... Kd6 $14) 33. b4 $1 $16 {[%emt 0:00:28] aiming for bxa5.} axb4 {[%emt 0:00:55]} 34. Nxb4 {[%emt 0:00:06] Strongly threatening a5.} c5 $2 {[%emt 0:01:17] A mistake that costs the game.} (34... Kd6 $16) 35. Nd3 {[%emt 0:00:32]} cxd4 {[%emt 0:00:01]} 36. cxd4 {[%emt 0:00:00]} Ne6 {[%emt 0:00:28]} 37. Rb2 {[%emt 0:00:09]} Nxd4 {[%emt 0:00:27]} 38. Rxb6 {[%emt 0:00:02]} Re7 {[%emt 0:00:01]} 39. Ra2 {[%emt 0:00:37] Prevents Re2+.} ({Don't play} 39. Nxf6+ $6 Kc7 40. Rab1 Re2+ 41. Kf1 Rc2) (39. Rxf6 Rxf6 40. Nxf6+ Kd6 $16) 39... Be6 {[%emt 0:00:21] [#]} 40. Ne3 {[%emt 0:01:31]} Ra8 {[%emt 0:00:13]} (40... Rc8 $142 41. Nb4 f5) 41. a5 $18 {[%emt 0:00:11][%cal Ba4a5,Ba5a6][%mdl 32]} Ke8 {[%emt 0:00:16]} 42. a6 {[%emt 0:00:27]} Kf7 {[%emt 0:00:02][%cal Od4f3]} 43. Nc5 {[%emt 0:00:11]} Raa7 $2 {[%emt 0:02:25]} (43... Bc8 44. Nxd5 Re5 45. Rxf6+ Kg7) 44. Rd2 {[%emt 0:00:39] White is clearly winning.} Rec7 {[%emt 0:00:01]} 45. Nb7 {[%emt 0:00:16]} Nc6 {[%emt 0:00:14] [#]} 46. Rxc6 $1 {[%emt 0:00:04][%mdl 576] Remove Defender, Decoy} Rxc6 {[%emt 0:00:06]} 47. Nd8+ {[%emt 0:00:01]} (47. Nxd5 $2 {too greedy.} Bxd5 48. Nd8+ Kg6 49. Nxc6 Bxc6 $19) 47... Kg7 {[%emt 0:00:01]} 48. Nxc6 {[%emt 0:00:00]} Rxa6 {[%emt 0:00:01]} 49. Nd4 {[%emt 0:00:03]} Bf7 {[%emt 0:00:01]} 50. g4 {[%emt 0:00:03]} Kg6 {[%emt 0:00:02]} 51. Kg3 {[%emt 0:00:02]} Ra3 {[%emt 0:00:02]} 52. Nef5 {[%emt 0:00:02] Weighted Error Value: White=0.14 (very precise) /Black=0.32} 1-0

[Event "AI Cup Div-1 2023"]
[Site "Online"]
[Date "2023.09.28"]
[Round "54.2"]
[White "Nepomniachtchi, Ian"]
[Black "Vachier-Lagrave, Maxime"]
[Result "0-1"]
[Annotator "TA"]
[ECO "B31"]
[WhiteElo "2771"]
[BlackElo "2727"]
[PlyCount "92"]
[EventDate "2023.09.18"]
[EventType "k.o."]
[EventCountry "NET"]
[SourceTitle "playchess.com"]
[Source "ChessBase"]
[SourceQuality "1"]
[TimeControl "900+3"]

{[%evp 11,92,23,23,8,19,13,16,11,22,3,6,16,24,7,26,16,27,18,39,44,38,10,11,-10,-25,-19,0,-25,-20,-45,-33,-45,0,-21,0,-7,-10,-14,14,0,0,0,45,62,56,7,109,50,173,122,111,31,25,22,173,90,408,352,335,35,37,0,0,0,0,0,0,0,0,0,0,0,0,-839,-841,-29988,-29989,-29989,-29990,-29990,-29991,-29996,-29997]} 1. e4 {[%emt 0:00:03]} c5 {[%emt 0:00:05]} 2. Nf3 {[%emt 0:00:03]} Nc6 {[%emt 0:00:00]} 3. Bb5 {[%emt 0:00:04]} g6 {[%emt 0:00:01]} 4. O-O {[%emt 0:00:02]} Bg7 {[%emt 0:00:02]} 5. Re1 {[%emt 0:00:01]} Nf6 {[%emt 0:00:01]} 6. Bxc6 {[%emt 0:00:20]} dxc6 {[%emt 0:00:03]} 7. h3 {[%emt 0:00:04] B31: Sicilian: 2...Nc6 3 Bb5 g6.} Nd7 {[%emt 0:00:13][%cal Bf6d7,Bd7f8,Bf8e6,Be6d4][%mdl 32]} 8. e5 {[%emt 0:00:07]} Nf8 {[%emt 0:00:01]} 9. d3 {[%emt 0:00:04] The position is equal.} Ne6 {[%emt 0:00:05]} 10. b3 {[%emt 0:00:07]} O-O {[%emt 0:00:18]} 11. a4 {[%emt 0:00:05][%cal Ba2a4,Ba4a5][%mdl 32] [#]} Nd4 $146 {[%emt 0:00:26]} ({Predecessor:} 11... a5 12. Bb2 b6 13. Nbd2 Ra7 14. Ne4 Nd4 15. Ned2 Be6 16. Bxd4 cxd4 17. Ng5 Bd5 {½-½ Rodriguez Fraga,Y (2440)-Martello,J (2355) WZ-ch C02 email 2019}) 12. Nbd2 {[%emt 0:00:07]} Be6 {[%emt 0:00:20]} 13. Bb2 {[%emt 0:00:47]} b6 {[%emt 0:00:05][%cal Bb7b6,Bb6b5,Bb5b4][%mdl 32]} 14. a5 {[%emt 0:00:40]} Qd7 {[%emt 0:00:27]} 15. Ra4 {[%emt 0:00:49][%cal Rf3d4]} b5 {[%emt 0:02:22]} 16. Ra1 {[%emt 0:00:03]} Bd5 {[%emt 0:01:31]} 17. Ba3 {[%emt 0:01:30]} Ne6 {[%emt 0:01:00]} 18. Ne4 {[%emt 0:00:43]} b4 {[%emt 0:00:13]} 19. Bb2 {[%emt 0:00:16]} f5 {[%emt 0:00:16]} 20. exf6 {[%emt 0:00:58]} exf6 {[%emt 0:00:02]} 21. Qd2 {[%emt 0:00:14]} Rae8 {[%emt 0:01:03]} (21... f5 $5 {[%cal Rg7b2]} 22. Bxg7 Qxg7 $15) 22. Rad1 {[%emt 0:01:43]} f5 {[%emt 0:01:26]} 23. Bxg7 {[%emt 0:01:37]} Qxg7 {[%emt 0:00:00]} 24. Neg5 {[%emt 0:00:18] Strongly threatening Nxe6.} (24. Nd6 Rd8 25. Nc4 Bxf3 26. Rxe6 Bxd1 27. Qxd1 Rfe8 28. Rxc6 Qc3 $17) 24... Nxg5 {[%emt 0:00:04]} (24... Nc7 $5 {[%cal Rh7h6]} 25. Nh2 Nb5 $11) 25. Nxg5 {[%emt 0:00:21]} h6 {[%emt 0:01:05]} 26. Nf3 {[%emt 0:00:03]} Bxf3 {[%emt 0:01:43]} 27. gxf3 {[%emt 0:00:00]} g5 {[%emt 0:00:01] Wards off Qf4} 28. Re3 {[%emt 0:00:30]} (28. Rxe8 $14 Rxe8 29. d4) 28... g4 {[%emt 0:01:20]} (28... Qd4 $1 $11 {remains equal.}) 29. Kh1 {[%emt 0:00:30]} (29. fxg4 $16 {And now Rxe8 would win.} Rxe3 30. Qxe3) 29... h5 {[%emt 0:00:35]} (29... gxh3 $2 30. Rg1 $18) (29... Qg5 $1 $14) 30. Rde1 {[%emt 0:00:38]} (30. Qe2 $1 $18 Rxe3 31. Qxe3) 30... Qg5 $16 {[%emt 0:00:28] [#]} (30... gxh3 $2 31. Rg1 $18 (31. Rxe8 $2 Qg2#) (31. Rxe8 $2 Qg2#)) 31. Qe2 {[%emt 0:01:05]} (31. a6 $1 $16) 31... Rxe3 $14 {[%emt 0:00:03]} (31... gxh3 $2 32. Rg1 $18 (32. Rxe8 $2 Qg2#) (32. Rxe8 $2 Qg2#)) 32. Qxe3 {[%emt 0:00:00][%mdl 4096] Endgame KQR-KQR} Qh4 {[%emt 0:00:41] [#]} (32... Qxe3 $11 33. Rxe3 gxf3) 33. Qe6+ {[%emt 0:00:15]} (33. Qxc5 Qxh3+ 34. Kg1 g3 35. Qc4+ Kh8 36. Qd4+ Kg8 37. Qc4+ (37. Qxb4 $2 Qh2+ 38. Kf1 Qxf2#) 37... Kh8 38. Qd4+ Kg8 39. Qc4+ $11 (39. Qxb4 $2 Qh2+ 40. Kf1 Qxf2#)) (33. Kg1 $1 $18) 33... Rf7 $2 {[%emt 0:00:01][%mdl 8192]} (33... Kg7 $16 {is tougher.}) 34. Qg6+ {[%emt 0:00:07]} (34. Qxc6 Qxh3+ 35. Kg1 gxf3 36. Qg6+ (36. Qxc5 $2 Rg7#) 36... Kf8 $11) 34... Kf8 {[%emt 0:00:00]} 35. Qd6+ $2 {[%emt 0:01:33]} (35. Qxc6 Qxh3+ 36. Kg1 gxf3 37. Qd6+ Kg7 $17) (35. Qh6+ Rg7 36. Qd6+ (36. Qxc6 $2 Qxh3+ 37. Kg1 gxf3+ {[%mdl 64] Discovered Attack}) 36... Kg8 $18) ({Better is} 35. f4 $18 {Black must now prevent Qh6+.} g3 36. fxg3 Qxh3+ 37. Kg1) 35... Kg7 {[%emt 0:00:13]} 36. Re6 {[%emt 0:00:05] Rg6+ would kill now.} Qxf2 {[%emt 0:00:27]} (36... gxh3 37. Rg6+ (37. Qxc5 Qg5 $16) 37... Kh7 38. Rh6+ (38. Qxc6 Qf4 $11) 38... Kg8 39. Qg6+ Kf8 40. Rh8+ (40. Qxh5 Qxf2 41. Rh8+ Ke7 $11) 40... Ke7 41. Qxc6 (41. Rxh5 Qxf2 42. Rh6 Qxf3+ 43. Kh2 Qd5 $11)) (36... Qxh3+ 37. Kg1 gxf3 38. Rg6+ Kh7 39. Rh6+ Kg7 40. Qg6+ (40. Qxc6 $2 Qg2#) 40... Kf8 41. Rh8+ (41. Qxc6 $2 Qg2#) 41... Ke7 42. Qg5+ (42. Qxh5 $2 Qg2#) 42... Kd6 43. Qd8+ (43. Qxh5 $2 Qg2#) (43. Qg6+ Ke5 $11) 43... Rd7 44. Rh6+ Ke5 45. Qe8+ Kd4 46. Qh8+ Kd5 47. Qg8+ (47. Rxh5 $2 Qg2#) 47... Ke5 48. Qe6+ (48. Rxc6 $2 Qg4+ 49. Qxg4 fxg4 $19) 48... Kf4 49. Qe3+ (49. Qxd7 $2 Qg2#) 49... Kg4 50. Rg6+ Kh4 51. Qg5#) 37. Rg6+ {[%emt 0:00:08]} Kh7 {[%emt 0:00:00]} 38. Rh6+ {[%emt 0:00:01]} Kg7 {[%emt 0:00:00] Some like it hot} 39. Qg6+ $40 {[%emt 0:00:11][%mdl 128] White attacks.} Kf8 {[%emt 0:00:01] ...Qf1+ would be deadly.} 40. Rh8+ {[%emt 0:00:02]} Ke7 {[%emt 0:00:01]} 41. Qg5+ {[%emt 0:00:01]} Kd6 $1 {[%emt 0:00:07]} 42. Qd8+ $2 {[%emt 0:00:46][%mdl 8192]} (42. fxg4 $11 Qf3+ 43. Kh2 Qf2+ 44. Kh1) 42... Ke5 $19 {[%emt 0:00:04] ( -> ...Kf4)} 43. Re8+ {[%emt 0:00:06]} Kf4 {[%emt 0:00:01] Black mates.} 44. Qd6+ {[%emt 0:00:01]} Kxf3 {[%emt 0:00:02][%csl Gf3][%cal Rf2g2]} 45. Qxc6+ {[%emt 0:00:01]} Kg3 {[%emt 0:00:02][%csl Gg3][%cal Rf2h2]} 46. Qd6+ {[%emt 0:00:08]} f4 {[%emt 0:00:02] Quite a comeback for Black.   Weighted Error Value: White=0.58/Black=0.33} 0-1